bitfinex/quotes_ETHUSD_20220109
["timestamp","ask_amount","ask_price","bid_price","bid_amount"]
[1641758588363,1.46520428,3202.4,3201.9,0.0096632]
[1641758588970,0.07806,3202.3,3201.9,0.0096632]
[1641758589216,0.07806,3202.3,3201.5,6.11]
[1641758589217,0.07806,3202.3,3201.6,0.01136847]
[1641758590613,0.07806,3202.3,3201.5,0.01193689]
[1641758591112,1.32815562,3201.5,3201.4,1.68838366]
[1641758591615,0.00397896,3202.2,3201.4,1.98838366]
[1641758591813,0.00397896,3202.2,3201.8,0.78068]
[1641758592012,0.00341054,3202.1,3201.9,1.2306467]
[1641758592213,0.00341054,3202.1,3202.0,5.9]
[1641758592411,1.04682588,3202.5,3202.0,4.75]
[1641758592612,1.16281217,3202.2,3202.1,1.0]
[1641758592812,1.16281217,3202.2,3202.1,1.45]
[1641758593065,1.16281217,3202.2,3202.1,0.45]
[1641758593760,1.16281217,3202.2,3202.1,1.2306585]
[1641758595363,1.16281217,3202.2,3200.2,18.31]
[1641758595364,3.41112535,3200.7,3200.6,1.51290809]
[1641758595562,16.66161789,3200.2,3200.1,2.35934513]
[1641758595863,14.9117383,3200.6,3199.3,0.472923]
[1641758595864,4.30320349,3199.4,3199.3,0.472923]
[1641758596466,0.4029,3200.3,3199.3,0.472923]
[1641758596727,0.01264873,3200.2,3199.1,0.9569238]
[1641758596919,0.98083,3199.4,3199.1,0.9569238]
[1641758597321,2.1609425,3199.4,3199.1,0.9569238]
[1641758597719,0.0124654,3199.4,3199.2,0.01307374]
[1641758597921,0.09075873,3200.2,3199.2,0.01307374]
[1641758597922,0.07811,3200.2,3199.3,7.75]
[1641758598119,0.07811,3200.2,3199.3,7.83027422]
[1641758598319,0.07811,3200.2,3200.1,1.37178309]
[1641758598620,0.07811,3200.2,3200.1,1.37974102]
[1641758598818,0.07811,3200.2,3200.1,1.46001524]
[1641758600560,0.07811,3200.2,3200.1,1.41001524]
[1641758601272,0.07811,3200.2,3200.1,2.77340108]
[1641758601666,0.07811,3200.2,3200.1,1.32974102]
[1641758602062,0.07811,3200.2,3200.1,1.41001524]
[1641758602663,0.07811,3200.2,3200.1,2.76650326]
[1641758603866,0.07811,3200.2,3200.1,6.29676669]
[1641758604070,0.07812,3201.9,3200.9,0.0148361]
[1641758604312,0.07812,3201.9,3200.9,3.16427693]
[1641758604515,0.00170527,3201.8,3201.0,0.83311634]
[1641758604714,0.00170527,3201.8,3201.1,1.00294729]
[1641758604911,0.00113685,3201.7,3201.2,0.45]
[1641758605112,0.00113685,3201.7,3201.3,1.03896044]
[1641758605312,2.8085243,3202.2,3201.3,1.04009729]
[1641758605313,0.00341054,3202.1,3201.3,1.04009729]
[1641758605512,0.00341054,3202.1,3201.4,0.45]
[1641758605713,0.00284212,3202.0,3201.4,0.45]
[1641758606112,0.00227369,3201.9,3201.4,1.23064]
[1641758606312,0.00227369,3201.9,3201.5,2.69005288]
[1641758606512,0.00170527,3201.8,3201.7,1.21644144]
[1641758606713,0.00170527,3201.8,3201.7,2.81765329]
[1641758608186,0.00170527,3201.8,3201.7,1.26661886]
[1641758609692,0.00170527,3201.8,3201.7,3.8728907]
[1641758610491,0.00170527,3201.8,3201.7,1.26661886]
[1641758611092,0.00170527,3201.8,3201.5,1.14598646]
[1641758611294,0.00170527,3201.8,3201.6,0.45]
[1641758611594,0.00113685,3201.7,3201.6,0.45]
[1641758612218,0.00113685,3201.7,3201.6,1.7091266]
[1641758614516,0.00113685,3201.7,3201.6,4.82519096]
[1641758614715,0.00113685,3201.7,3201.6,2.38940082]
[1641758614919,0.00113685,3201.7,3201.6,4.88528101]
[1641758615120,0.00113685,3201.7,3201.6,8.43528101]
[1641758615317,0.00113685,3201.7,3201.6,4.20500679]
[1641758615556,0.00113685,3201.7,3201.6,4.85609174]
[1641758615758,0.00113685,3201.7,3201.6,4.93636596]
[1641758615957,0.00113685,3201.7,3201.6,9.13636596]
[1641758616857,1.17743739,3203.5,3202.5,0.78038]
[1641758617060,1.17743739,3203.5,3202.6,3.00017899]
[1641758617256,0.00966319,3203.4,3202.6,2.95216615]
[1641758617658,0.00909477,3203.3,3202.7,1.17761433]
[1641758617859,0.00909477,3203.3,3202.8,2.64411227]
[1641758618058,0.00852635,3203.2,3202.9,2.00615922]
[1641758618460,0.00795792,3203.1,3202.9,2.00615922]
[1641758618864,0.0073895,3203.0,3202.9,0.45]
[1641758619069,0.0073895,3203.0,3202.3,0.45]
[1641758619070,12.5073895,3203.0,3202.3,0.45]
[1641758619324,0.02466436,3202.9,3201.9,0.45]
[1641758619514,0.00682108,3202.9,3201.9,0.45]
[1641758619714,0.01295165,3203.4,3201.9,0.45]
[1641758619715,0.00625265,3202.8,3201.9,0.45]
[1641758619915,0.00625265,3202.8,3202.3,1.53578041]
[1641758620221,0.00568423,3202.7,3202.3,2.53760473]
[1641758620617,0.00511581,3202.6,3202.3,2.53760473]
[1641758621018,0.00454738,3202.5,3202.4,7.65]
[1641758621217,0.00454738,3202.5,3202.4,9.3559]
[1641758621416,0.00454738,3202.5,3202.4,2.0059]
[1641758621616,0.00454738,3202.5,3202.4,4.52362606]
[1641758622415,0.00454738,3202.5,3202.4,4.29172606]
[1641758622818,0.00454738,3202.5,3202.4,4.77210606]
[1641758623065,0.00454738,3202.5,3202.4,7.96792403]
[1641758623261,0.00150175,3204.0,3202.7,0.00364964]
[1641758623462,0.00150175,3204.0,3202.8,0.52803]
[1641758623669,0.00795793,3203.9,3202.9,3.35937908]
[1641758623869,0.00795793,3203.9,3203.0,0.52803]
[1641758624070,0.00738951,3203.8,3203.1,2.92577051]
[1641758624262,0.00738951,3203.8,3203.6,1.06718835]
[1641758624462,1.25921083,3204.1,3203.3,0.78023]
[1641758624463,0.00682109,3203.7,3203.3,0.78023]
[1641758624666,0.00682109,3203.7,3203.2,0.07803]
[1641758624861,0.00625266,3203.6,3203.1,0.45]
[1641758625266,0.00568424,3203.5,3203.1,0.75]
[1641758625466,0.00568424,3203.5,3203.3,1.31355832]
[1641758625763,0.00511581,3203.4,3203.3,3.90285575]
[1641758625962,0.00511581,3203.4,3203.3,4.20285575]
[1641758626363,0.00511581,3203.4,3203.3,3.17477902]
[1641758626724,0.00511581,3203.4,3203.3,5.84714935]
[1641758626924,0.00511581,3203.4,3203.3,5.54714935]
[1641758627124,0.00511581,3203.4,3203.3,5.35730542]
[1641758627321,0.00511581,3203.4,3203.3,3.47477902]
[1641758627722,0.00511581,3203.4,3203.3,2.87477902]
[1641758628127,0.00511581,3203.4,3203.3,3.73528324]
[1641758628323,0.00511581,3203.4,3203.3,2.95505324]
[1641758628524,0.00511581,3203.4,3203.3,1.26430145]
[1641758628922,0.00511581,3203.4,3203.3,1.86430145]
[1641758629122,0.00511581,3203.4,3203.3,3.92041611]
[1641758629322,0.00511581,3203.4,3203.3,1.26430145]
[1641758629522,0.00511581,3203.4,3203.3,1.86430145]
[1641758629723,0.00511581,3203.4,3203.3,5.27978196]
[1641758629922,0.00511581,3203.4,3203.3,8.97978196]
[1641758630122,0.00511581,3203.4,3203.3,5.27978196]
[1641758630575,0.00511581,3203.4,3203.3,5.22894754]
[1641758630976,0.00511581,3203.4,3203.3,2.64452145]
[1641758631174,0.00511581,3203.4,3203.3,4.39668262]
[1641758631378,0.00511581,3203.4,3203.3,1.26430145]
[1641758632273,0.00511581,3203.4,3203.3,1.86430145]
[1641758632474,0.00511581,3203.4,3203.3,1.26430145]
[1641758632673,0.00511581,3203.4,3203.3,4.06999855]
[1641758632874,0.00511581,3203.4,3203.3,1.86430145]
[1641758633676,0.00511581,3203.4,3203.3,4.3597799]
[1641758633878,0.00511581,3203.4,3203.3,4.37545968]
[1641758634083,0.00511581,3203.4,3203.3,4.45348968]
[1641758634314,0.00511581,3203.4,3203.3,1.34233145]
[1641758635109,0.00511581,3203.4,3203.3,1.26430145]
[1641758635311,0.00511581,3203.4,3203.3,3.80308089]
[1641758635710,0.00511581,3203.4,3203.3,4.16048488]
[1641758635914,1.28237965,3204.5,3203.3,4.56968021]
[1641758636110,1.28237965,3204.5,3203.3,1.97349678]
[1641758636309,0.00511582,3204.3,3203.4,2.54083434]
[1641758636512,0.00511582,3204.3,3203.4,2.99083434]
[1641758636811,0.00454739,3204.2,3203.5,0.78019]
[1641758637010,0.00454739,3204.2,3203.9,1.03038181]
[1641758637212,0.00397897,3204.1,3203.9,1.03038181]
[1641758637612,0.00341055,3204.0,3203.9,1.03038181]
[1641758638070,0.00568424,3204.0,3203.9,1.03038181]
[1641758641474,0.00568424,3204.0,3203.6,1.2980538]
[1641758641713,0.0157133,3203.9,3203.6,1.2980538]
[1641758641913,0.00284212,3203.9,3203.7,2.46820982]
[1641758642112,0.0022737,3203.8,3203.7,2.49216291]
[1641758642516,0.0022737,3203.8,3203.6,1.8980538]
[1641758642916,0.00170528,3203.7,3203.6,2.6782338]
[1641758643121,0.00170528,3203.7,3203.6,3.72239677]
[1641758644320,0.00170528,3203.7,3203.4,0.45]
[1641758644620,0.00170528,3203.7,3203.3,1.69854997]
[1641758644621,0.03243845,3203.6,3202.2,0.45]
[1641758644917,0.02034684,3203.5,3202.8,0.00341054]
[1641758645116,0.07803,3203.6,3202.8,0.00341054]
[1641758645317,0.97047,3203.7,3202.8,0.00341054]
[1641758645565,0.00113685,3203.6,3202.8,0.00341054]
[1641758645966,2.65657567,3203.4,3202.8,0.00341054]
[1641758646367,2.65657567,3203.4,3202.9,0.08027422]
[1641758646563,1.19252775,3203.3,3203.1,1.05959502]
[1641758646766,2.65771252,3203.6,3203.1,1.05959502]
[1641758646966,2.65771252,3203.6,3203.1,1.05732132]
[1641758647169,2.65771252,3203.6,3203.2,0.3]
[1641758647367,0.00170527,3203.5,3203.2,0.3]
[1641758647768,0.00113684,3203.4,3203.1,1.05732132]
[1641758647968,0.00113684,3203.4,3202.7,0.8952]
[1641758648168,0.09519929,3204.1,3202.7,1.3452]
[1641758648370,0.09519929,3204.1,3202.8,0.0022737]
[1641758648569,0.00454739,3204.0,3202.8,0.0022737]
[1641758648767,1.00454739,3204.0,3202.8,0.0022737]
[1641758648972,2.93068218,3203.9,3202.8,0.0022737]
[1641758649226,3.00871218,3203.9,3203.0,1.09555073]
[1641758649421,2.65998621,3203.8,3203.0,1.09555073]
[1641758649820,0.00284212,3203.7,3203.0,1.09555073]
[1641758650021,1.51193603,3203.2,3203.0,1.09555073]
[1641758650225,0.00227369,3203.6,3203.0,1.09555073]
[1641758650421,0.00227369,3203.6,3203.0,0.78036]
[1641758650621,0.00170527,3203.5,3203.0,0.78036]
[1641758650827,0.00170527,3203.5,3203.1,2.76749626]
[1641758651022,2.65657567,3203.8,3203.2,1.0]
[1641758651023,0.00113684,3203.4,3203.2,1.0]
[1641758651222,0.00113684,3203.4,3203.3,8.19258562]
[1641758651423,0.00284212,3203.7,3203.3,11.23699099]
[1641758651626,2.65657567,3203.8,3203.5,0.7802]
[1641758651924,0.00284212,3203.7,3203.6,0.45]
[1641758652123,0.00284212,3203.7,3203.3,1.37492848]
[1641758652322,0.00284212,3203.7,3203.2,0.45]
[1641758652524,0.00227369,3203.6,3203.2,0.45]
[1641758652722,0.00227369,3203.6,3203.0,1.56059]
[1641758652973,1.28404714,3203.2,3202.9,0.7804]
[1641758653175,0.00170527,3203.5,3202.9,1.0804]
[1641758653373,3.1,3203.9,3203.3,1.35478374]
[1641758653374,2.66033078,3203.8,3203.3,1.35478374]
[1641758653573,0.00113684,3203.4,3203.3,1.35478374]
[1641758653774,2.66033078,3203.8,3203.0,0.78150685]
[1641758653974,0.00113684,3203.4,3203.0,0.78150685]
[1641758654374,0.00113684,3203.4,3203.1,2.46952377]
[1641758654578,0.00113684,3203.4,3203.0,1.08150685]
[1641758654983,0.00113684,3203.4,3203.1,2.53156833]
[1641758655178,0.00113684,3203.4,3203.0,1.16178107]
[1641758655577,0.00113684,3203.4,3203.2,1.4285496]
[1641758656180,0.00113684,3203.4,3203.2,1.1285496]
[1641758656378,0.01833309,3203.3,3203.0,0.00113685]
[1641758656579,0.00113684,3203.4,3203.0,0.00113685]
[1641758656831,0.00113684,3203.4,3202.9,0.00170527]
[1641758657922,1.14388933,3203.2,3202.9,0.00170527]
[1641758658122,0.00113684,3203.4,3203.0,1.23038]
[1641758658324,0.00113684,3203.4,3203.1,2.92367654]
[1641758658521,0.00113684,3203.4,3203.2,0.75]
[1641758658722,0.00113684,3203.4,3203.3,6.3596697]
[1641758658922,0.00113684,3203.4,3203.3,6.8096697]
[1641758659123,0.00113684,3203.4,3203.3,3.28994392]
[1641758659326,0.00113684,3203.4,3203.3,3.97011392]
[1641758660764,0.00113684,3203.4,3203.3,1.58848422]
[1641758660965,0.00113684,3203.4,3203.3,4.05240837]
[1641758661165,0.00113684,3203.4,3203.3,1.58848422]
[1641758661364,1.14560245,3203.8,3203.3,1.58848422]
[1641758661565,2.65655418,3203.7,3203.3,1.51044422]
[1641758661766,2.65655418,3203.7,3203.3,0.53027422]
[1641758661767,0.01602181,3203.6,3203.3,0.53027422]
[1641758661968,0.01602181,3203.6,3203.3,0.45]
[1641758662164,0.01602181,3203.6,3202.6,0.60830422]
[1641758662365,0.01602181,3203.6,3202.8,0.78045]
[1641758662568,2.65825946,3203.7,3202.8,0.78045]
[1641758662765,2.65825946,3203.7,3202.9,0.00284211]
[1641758663167,2.65655418,3203.5,3202.9,0.00284211]
[1641758663365,2.65655418,3203.5,3203.0,0.78038]
[1641758663766,2.65655418,3203.5,3203.1,0.00170527]
[1641758663967,0.00170528,3203.7,3203.1,0.00170527]
[1641758664642,0.00170528,3203.7,3203.5,0.78027]
[1641758664838,0.00170528,3203.7,3203.6,2.50134786]
[1641758665038,0.00170528,3203.7,3203.6,3.10134786]
[1641758665439,0.00170528,3203.7,3203.6,0.68027422]
[1641758665639,0.00170528,3203.7,3203.6,0.38027422]
[1641758665842,0.00170528,3203.7,3203.6,0.3]
[1641758666441,0.00170528,3203.7,3203.5,2.38027]
[1641758666841,0.00113685,3203.6,3203.5,2.38027]
[1641758667244,0.00113685,3203.6,3203.5,1.38027]
[1641758667442,0.00113685,3203.6,3203.5,1.16054422]
[1641758667642,0.00113685,3203.6,3203.5,0.78027]
[1641758667846,0.00113685,3203.6,3203.5,1.38027]
[1641758668065,0.00113685,3203.6,3203.5,0.78027]
[1641758668465,0.00113685,3203.6,3203.4,0.45]
[1641758669666,0.00113685,3203.6,3203.4,0.75]
[1641758669870,0.00113685,3203.6,3203.5,3.30836827]
[1641758670067,0.00113685,3203.6,3203.5,3.60836827]
[1641758670467,0.00113685,3203.6,3203.5,1.0803]
[1641758670967,0.00113685,3203.6,3203.5,0.7803]
[1641758673420,0.00113685,3203.6,3203.5,1.0803]
[1641758673822,0.00113685,3203.6,3203.5,0.7803]
[1641758674020,0.00113685,3203.6,3203.4,2.01049]
[1641758674021,0.00113685,3203.6,3203.4,0.45]
[1641758675470,0.00113685,3203.6,3203.4,4.27193829]
[1641758675970,0.00113685,3203.6,3203.4,4.35221251]
[1641758676168,0.00113685,3203.6,3203.5,2.43106332]
[1641758676370,0.00113685,3203.6,3203.4,2.69074302]
[1641758676570,0.00113685,3203.6,3203.5,2.43265015]
[1641758677674,0.00113685,3203.6,3203.4,1.83031]
[1641758677869,0.00113685,3203.6,3203.4,1.90834]
[1641758678270,0.00113685,3203.6,3203.4,1.60834]
[1641758678472,1.54536884,3203.6,3203.4,1.60834]
[1641758678971,1.54536884,3203.6,3203.4,1.23031]
[1641758679248,1.54536884,3203.6,3203.4,1.83031]
[1641758679436,1.54536884,3203.6,3203.4,1.23031]
[1641758679835,1.54536884,3203.6,3203.4,0.45]
[1641758680036,1.54536884,3203.6,3203.2,1.08036]
[1641758680241,2.65656284,3203.5,3203.1,0.00170527]
[1641758680937,2.65656284,3203.5,3202.9,0.00284211]
[1641758681739,2.65656284,3203.5,3202.9,0.78328211]
[1641758682036,1.20507743,3203.0,3202.9,0.78044]
[1641758682437,1.20507743,3203.0,3202.9,0.78328211]
[1641758682637,1.20507743,3203.0,3202.9,1.08328211]
[1641758682840,2.65656284,3203.5,3203.0,0.78042]
[1641758683272,0.00113685,3203.6,3203.1,0.00170527]
[1641758684073,1.29566309,3203.5,3203.1,0.00170527]
[1641758684675,2.65684441,3203.4,3203.1,0.00170527]
[1641758684876,2.65684441,3203.4,3203.1,1.40800574]
[1641758685378,2.65684441,3203.4,3203.2,0.00113684]
[1641758685575,2.65684441,3203.4,3203.3,0.78035]
[1641758686378,2.65684441,3203.4,3203.2,0.00113684]
[1641758686726,2.65684441,3203.4,3203.0,0.00227369]
[1641758687217,2.65684441,3203.4,3203.0,1.16470568]
[1641758687621,2.65684441,3203.4,3203.1,0.00170527]
[1641758688217,2.65684441,3203.4,3203.0,0.29460273]
[1641758688419,0.00113685,3203.3,3202.9,1.86072]
[1641758688819,0.00113685,3203.3,3203.1,0.78035]
[1641758689020,0.00113685,3203.3,3203.2,0.3]
[1641758691274,2.65447379,3203.4,3203.2,0.3]
[1641758691672,3.1,3203.9,3203.3,0.78027]
[1641758691972,1.40089241,3203.7,3203.3,0.78027]
[1641758692171,0.00284212,3203.8,3203.3,0.78027]
[1641758692372,0.00170527,3203.6,3203.3,0.78027]
[1641758692574,0.0022737,3203.7,3203.3,0.78027]
[1641758692878,0.00170527,3203.6,3203.3,0.78027]
[1641758693073,0.00170527,3203.6,3203.3,3.25445532]
[1641758693278,0.00113685,3203.5,3203.3,0.78027]
[1641758693474,4.45859833,3203.9,3203.3,3.22820603]
[1641758693874,4.45859833,3203.9,3203.5,1.06889986]
[1641758693875,0.00170527,3203.8,3203.5,1.06889986]
[1641758694073,0.00170527,3203.8,3203.6,3.86279306]
[1641758694317,0.00113685,3203.7,3203.6,1.23017]
[1641758694515,0.00113685,3203.7,3203.6,4.58027591]
[1641758694715,0.00113685,3203.7,3203.6,4.47819167]
[1641758694916,0.00113685,3203.7,3203.6,4.78882904]
[1641758695718,0.00113685,3203.7,3203.6,2.3102888]
[1641758695923,0.00113685,3203.7,3203.6,1.53017]
[1641758696720,0.00113685,3203.7,3203.6,1.23017]
[1641758696919,0.00113685,3203.7,3203.6,0.45]
[1641758697519,0.00113685,3203.7,3203.4,0.07803]
[1641758697720,0.01239,3203.6,3203.4,0.07803]
[1641758697965,1.38503433,3203.5,3203.4,0.07803]
[1641758698571,1.38503433,3203.5,3203.3,1.23035]
[1641758699570,1.38503433,3203.5,3203.3,0.45]
[1641758700172,0.00113685,3203.7,3203.3,0.45]
[1641758700974,0.00113685,3203.7,3203.3,1.23036]
[1641758701373,0.00113685,3203.7,3203.3,2.40324865]
[1641758701578,0.00113685,3203.7,3203.4,4.00971669]
[1641758701821,0.00113685,3203.7,3203.4,4.47688553]
[1641758702121,0.00113685,3203.7,3203.5,0.86048422]
[1641758702424,0.02205095,3203.6,3203.0,0.45]
[1641758702630,0.00113685,3203.7,3203.0,0.45]
[1641758702924,0.00113685,3203.7,3203.1,0.0022737]
[1641758703321,1.49052664,3203.6,3203.1,0.0022737]
[1641758703528,1.49052664,3203.6,3202.9,0.00341054]
[1641758703924,2.66796403,3203.6,3202.9,0.00341054]
[1641758704122,4.5305938,3203.0,3202.3,0.00682108]
[1641758704321,0.02899929,3202.9,3202.3,0.00682108]
[1641758704528,2.62722646,3203.5,3202.3,0.78742108]
[1641758704722,1.17743739,3203.4,3202.4,1.27486128]
[1641758704922,1.17743739,3203.4,3202.4,1.28111394]
[1641758705122,1.17743739,3203.4,3202.5,0.00568424]
[1641758705322,1.43007742,3202.6,3202.5,0.00568424]
[1641758705573,2.73534372,3203.3,3202.5,0.00568424]
[1641758705774,1.17743739,3203.4,3202.5,0.00568424]
[1641758706378,4.04519479,3203.5,3202.5,0.00568424]
[1641758706575,0.7805106,3203.3,3202.5,0.00568424]
[1641758706774,1.34666489,3202.9,3202.5,0.00568424]
[1641758707775,1.34666489,3202.9,3202.6,0.7805]
[1641758708176,1.34666489,3202.9,3202.7,0.00454739]
[1641758708383,0.7804904,3203.5,3202.7,0.00454739]
[1641758708775,0.7804904,3203.5,3202.5,0.00568424]
[1641758708982,2.32867424,3203.7,3202.7,0.78049]
[1641758709223,1.17857424,3203.7,3202.7,0.78049]
[1641758709518,1.17857424,3203.7,3202.8,0.00397897]
[1641758709717,0.00113685,3203.7,3202.8,0.00397897]
[1641758710118,1.42392112,3203.5,3202.9,2.51024934]
[1641758710520,1.42392112,3203.5,3203.0,0.00284212]
[1641758710819,1.42392112,3203.5,3203.0,0.78325212]
[1641758712019,2.6569872,3203.4,3203.0,0.78325212]
[1641758713070,3.4375107,3203.4,3203.0,0.00284212]
[1641758713467,6.21532209,3203.4,3202.7,0.00454739]
[1641758713969,2.6569872,3203.3,3202.7,0.00454739]
[1641758714173,2.74384267,3203.2,3202.7,0.00454739]
[1641758714770,2.6569872,3203.3,3202.7,0.00454739]
[1641758714970,5.84571288,3203.2,3202.7,0.00454739]
[1641758715371,2.6569872,3203.1,3202.7,0.00454739]
[1641758715571,2.87190988,3203.0,3202.7,0.00454739]
[1641758715972,2.6569872,3203.1,3202.7,0.00454739]
[1641758716172,5.43069571,3203.1,3202.4,0.78682266]
[1641758716370,2.6569872,3203.1,3202.4,0.78682266]
[1641758716571,2.6569872,3203.1,3202.5,0.00568424]
[1641758717021,2.6569872,3203.1,3202.4,0.00625266]
[1641758717224,2.6569872,3203.0,3202.6,0.00511581]
[1641758717519,1.23673859,3202.7,3202.4,0.00625266]
[1641758717920,1.23673859,3202.7,3202.5,0.78054]
[1641758718321,1.23673859,3202.7,3202.6,0.00511581]
[1641758721276,1.23673859,3202.7,3202.4,0.00625266]
[1641758721879,1.23673859,3202.7,3202.2,0.78063]
[1641758722078,1.23673859,3202.7,3202.0,3.03912805]
[1641758722079,1.23673859,3202.7,3202.4,1.56091]
[1641758722276,1.23673859,3202.7,3202.3,0.00682108]
[1641758722485,0.07806,3202.6,3202.5,0.00568424]
[1641758722677,0.07806,3202.6,3201.2,4.1262]
[1641758722678,0.07806,3202.6,3201.7,0.01023162]
[1641758722878,0.01026367,3202.5,3201.5,0.01136847]
[1641758723479,0.02209175,3202.2,3201.5,0.01136847]
[1641758723678,0.07806,3202.6,3201.5,0.01136847]
[1641758723679,0.07806,3202.4,3201.5,0.01136847]
[1641758724229,2.73596673,3202.4,3201.5,0.01136847]
[1641758724618,2.65790673,3202.4,3201.7,1.17924527]
[1641758724818,2.65790673,3202.4,3201.7,1.62924527]
[1641758725017,2.65790673,3202.4,3201.8,0.0096632]
[1641758725218,2.65790673,3202.3,3202.0,0.78066]
[1641758725617,2.65790673,3202.3,3202.1,0.00795793]
[1641758726022,2.65790673,3202.3,3202.2,0.45]
[1641758726219,2.65790673,3202.8,3202.2,1.23062]
[1641758726420,2.65790673,3202.8,3202.2,2.88492017]
[1641758726623,2.65790673,3202.8,3202.7,1.23949102]
[1641758726821,2.65790673,3202.8,3202.7,1.68949102]
[1641758727023,2.65790673,3202.8,3202.7,1.69403841]
[1641758728467,2.65790673,3203.3,3202.7,1.69403841]
[1641758728666,1.17731074,3203.0,3202.7,1.69403841]
[1641758728866,1.17731074,3203.0,3202.8,0.00397897]
[1641758729464,1.17731074,3203.0,3202.7,0.00454739]
[1641758729669,1.17731074,3203.0,3202.5,0.00568424]
[1641758730067,0.13037317,3203.5,3202.6,0.7805]
[1641758730466,0.13037317,3203.5,3202.7,0.00454739]
[1641758730967,0.13037317,3203.5,3202.5,2.47548077]
[1641758731169,1.42292099,3203.1,3202.5,2.47548077]
[1641758731366,1.42292099,3203.1,3202.6,0.00511581]
[1641758731568,1.42292099,3203.1,3202.8,0.78044]
[1641758731818,1.42292099,3203.1,3202.6,0.00511581]
[1641758732018,1.42292099,3203.1,3202.9,0.00341054]
[1641758732223,1.42292099,3203.1,3202.5,0.00568424]
[1641758732418,1.42292099,3203.1,3202.1,0.00795793]
[1641758732618,2.65739036,3203.0,3202.1,0.00795793]
[1641758733018,1.20891034,3202.4,3202.1,0.00795793]
[1641758733819,1.20891034,3202.4,3202.1,0.78857793]
[1641758734221,1.20891034,3202.4,3202.2,0.00738951]
[1641758735767,0.7806106,3203.0,3202.2,0.00738951]
[1641758736067,3.1,3202.4,3202.3,0.78056]
[1641758736467,3.1,3202.4,3202.3,0.78738108]
[1641758736868,1.30781056,3203.5,3202.4,11.25]
[1641758737170,3.23317029,3203.8,3202.8,0.78036]
[1641758737171,0.00150175,3202.9,3202.8,0.78036]
[1641758737372,1.17743739,3203.7,3202.9,4.25]
[1641758737666,1.17743739,3203.7,3203.0,1.23304142]
[1641758737869,7.65332037,3204.2,3203.0,2.61331564]
[1641758738168,7.65332037,3204.2,3203.7,1.36902074]
[1641758738169,0.00170527,3203.8,3203.7,1.36902074]
[1641758738367,0.00170527,3203.8,3203.7,2.11902074]
[1641758738570,0.00170527,3203.8,3203.7,3.19929496]
[1641758739239,0.88906396,3205.0,3204.8,4.38940249]
[1641758739425,4.8008838,3205.7,3205.4,2.27438445]
[1641758739426,2.6275501,3205.7,3205.4,2.27438445]
[1641758739622,2.6275501,3205.7,3205.5,0.45]
[1641758740023,0.07803,3205.7,3205.5,0.60824422]
[1641758740222,0.07803,3205.7,3205.6,2.58505275]
[1641758740422,0.07803,3205.7,3205.6,6.074]
[1641758740623,0.08883004,3205.7,3205.6,6.074]
[1641758741323,0.08883004,3205.7,3205.6,7.49781399]
[1641758741523,0.22861004,3205.8,3205.6,8.57748159]
[1641758741722,0.22861004,3205.8,3205.7,6.79605644]
[1641758741921,0.22861004,3205.8,3205.7,3.65541644]
[1641758742123,0.22861004,3205.8,3205.7,0.45]
[1641758743272,0.22861004,3205.8,3205.6,1.12828676]
[1641758743471,0.22861004,3205.8,3205.6,1.22979]
[1641758744268,0.22861004,3205.8,3205.5,1.27410379]
[1641758744470,0.22861004,3205.8,3205.6,0.45]
[1641758744769,0.22861004,3205.8,3205.7,8.99581902]
[1641758744969,0.00150173,3206.6,3206.0,1.55922]
[1641758745173,0.00150173,3206.6,3206.1,0.45]
[1641758745369,0.012,3206.2,3206.1,0.45]
[1641758745769,0.01484212,3206.2,3206.1,1.22961]
[1641758746168,0.01484212,3206.2,3206.1,0.45]
[1641758746169,1.33718373,3206.2,3206.1,0.45]
[1641758747228,1.32518373,3206.2,3206.1,0.45]
[1641758749830,1.32518373,3206.2,3205.4,2.27438445]
[1641758750032,0.04446739,3206.1,3205.4,2.27438445]
[1641758750233,0.04446739,3206.1,3205.5,0.00113684]
[1641758750234,0.10248144,3206.1,3205.5,0.00113684]
[1641758750468,0.01444578,3206.0,3205.5,0.00113684]
[1641758750669,4.77797,3205.9,3205.2,5.2168969]
[1641758750868,1.26625666,3205.8,3205.2,5.2168969]
[1641758751173,0.00113684,3205.7,3205.3,0.00113685]
[1641758751575,0.00170527,3205.8,3205.3,0.00113685]
[1641758751769,3.1199762,3205.5,3205.3,0.00113685]
[1641758751970,1.3656779,3205.4,3205.3,0.00113685]
[1641758753472,0.7799941,3205.5,3205.3,0.00795922]
[1641758753671,0.7799941,3205.5,3205.3,0.45113685]
[1641758753873,0.7799941,3205.5,3205.3,2.85501854]
[1641758754072,0.00113684,3205.7,3205.3,2.86547874]
[1641758754331,0.00113684,3205.7,3205.6,11.16793519]
[1641758754532,0.00150173,3206.4,3205.6,11.16793519]
[1641758754533,0.00150173,3206.4,3205.7,4.3]
[1641758754732,0.00150173,3206.4,3205.8,3.43432633]
[1641758754931,0.00341055,3206.3,3205.8,3.43432633]
[1641758755131,0.00341055,3206.3,3205.8,3.51460055]
[1641758755335,0.00284212,3206.2,3206.1,0.77952]
[1641758755536,0.00284212,3206.2,3206.1,6.17341999]
[1641758756931,3.1,3206.4,3206.1,6.17341999]
[1641758758486,3.1,3206.4,3206.1,6.47341999]
[1641758758881,3.1,3206.4,3206.2,5.624]
[1641758759088,0.00148504,3206.7,3206.5,0.77939]
[1641758759287,0.00148504,3206.7,3206.6,5.42268857]
[1641758760280,0.779404,3207.7,3206.8,0.77936]
[1641758760482,3.85416,3207.9,3206.9,3.07410492]
[1641758760483,0.00148504,3207.2,3206.9,3.07410492]
[1641758761481,0.00148504,3207.2,3207.1,2.90671886]
[1641758761724,0.00148504,3207.2,3207.1,3.68602886]
[1641758761924,0.00716928,3207.2,3207.1,3.68602886]
[1641758762325,0.00568424,3207.2,3207.1,3.68602886]
[1641758762725,0.00568424,3207.2,3207.1,2.1586008]
[1641758762925,0.00568424,3207.2,3207.1,0.77931]
[1641758763127,0.00568424,3207.2,3206.9,0.45]
[1641758763525,0.00511581,3207.1,3206.9,0.45]
[1641758763928,0.00454739,3207.0,3206.6,1.19238934]
[1641758764127,0.00454739,3207.0,3206.7,0.75]
[1641758764328,0.00397897,3206.9,3206.7,1.74106402]
[1641758764634,0.00341054,3206.8,3206.7,1.74106402]
[1641758765330,0.00341054,3206.8,3206.7,2.82054402]
[1641758766380,3.10341054,3206.8,3206.7,2.82054402]
[1641758766780,0.9636478,3209.0,3208.0,3.15]
[1641758766982,13.4834742,3210.1,3209.1,1.14681453]
[1641758766983,0.012,3209.5,3209.1,1.14681453]
[1641758767184,1.87222517,3209.6,3209.1,1.14681453]
[1641758767380,3.88060735,3209.7,3209.1,1.14681453]
[1641758767580,0.7790775,3209.3,3209.1,1.14681453]
[1641758767780,4.5806412,3209.2,3209.1,1.14681453]